Cogmind - Beta 13 @@@ ROGUE MODE // 2024.04.06 @ 18:20:22 Player: chexo4 Result: Destroyed by Y-54 Guardian with Flak Gun Performance ------------- Evolutions (4) 2000 Regions Visited (6) 1200 Robots Destroyed (70) 350 Value Destroyed (1903) 1903 Prototype IDs (9) 180 Alien Tech Used (0) 0 Bonus (305) 305 TOTAL SCORE: 5938 Bonus ------- High Alert Combat Kills 32 Follower Combat Kills 273 Cogmind --------- Core Integrity 0/850 Matter 285/300 Energy 54/100 System Corruption 10% Temperature Cool (6) Movement Core (50) Location -6/Factory Parts ------- > --- POWER (3) -------- (None) > --- PROPULSION (4) --- (None) > --- UTILITY (4) ------ Gravity Neutralizer Authchip [Weapon] > --- WEAPON (4) ------- (None) > --- INVENTORY (5) ---- Light Deuterium Engine Heavy Deuterium Engine Power Amplifier Thermal Generator Improved Datajack Peak State ------------ > --- POWER ------------ Cooled Ion Engine > --- PROPULSION ------- Improved Titanium Leg Improved Titanium Leg Improved Titanium Leg Improved Titanium Leg > --- UTILITY ---------- Cryofiber Web Small Storage Unit Advanced Weight Redist. System Propulsion Shielding > --- WEAPON ----------- Lightning Gun Advanced Assault Cannon Improved Datajack > --- INVENTORY -------- Light Deuterium Engine Micro Nuclear Core VTOL Module Weight Redist. System Improved Weapon Shielding Assault Rifle Proton Missile Launcher Remote Datajack [Rating: 40] Favorites ----------- Power Micro Nuclear Core Engine Light Deuterium Engine Power Core Micro Nuclear Core Propulsion VTOL Module Treads Armored Treads Leg Improved Titanium Leg Wheel Compact Wheel Hover Unit Gravmag Array Flight Unit VTOL Module Utility Advanced Weight Redist. System Device Advanced Weight Redist. System Storage High-capacity Storage Unit Processor Improved Signal Interpreter Hackware Authchip [Weapon] Protection Improved Weapon Shielding Weapon Assault Rifle Energy Gun Lightning Gun Energy Cannon Advanced Beam Cannon Ballistic Gun Assault Rifle Ballistic Cannon Advanced Assault Cannon Launcher Advanced EMP Blaster Special Weapon Remote Datajack Special Melee Weapon Improved Datajack Build | -11 -10 -9 -8 -7 -7 -6 ------- Run | Yrd Mat Mat Mat Fac Low Fac Slots Evolved 8 | . . 2 2 2 . 2 Power 2 | . . . 1 . . 1 Propulsion 2 | . . 2 . . . . Utility 2 | . . . 1 1 . . Weapon 2 | . . . . 1 . 1 Parts Attached 129 | 7 14 8 13 58 5 24 Power 31 | 1 3 2 1 13 2 9 Engine 20 | 1 3 2 1 8 2 3 Core 11 | . . . . 5 . 6 Reactor . | . . . . . . . Propulsion 39 | 2 4 2 2 23 2 4 Treads 5 | . . . . 4 . 1 Leg 5 | . . . . 5 . . Wheel 10 | 2 4 2 2 . . . Hover 4 | . . . . 1 . 3 Flight 15 | . . . . 13 2 . Utility 16 | 2 2 . 3 6 . 3 Device 6 | 1 . . 1 3 . 1 Storage 4 | 1 2 . . 1 . . Processor 2 | . . . 2 . . . Hackware 1 | . . . . . . 1 Protection 3 | . . . . 2 . 1 Artifact . | . . . . . . . Weapon 43 | 2 5 4 7 16 1 8 Energy Gun 10 | . 1 1 1 4 . 3 Energy Cannon 3 | . . 1 1 . . 1 Ballistic Gun 15 | 2 3 1 4 4 1 . Ballistic Cannon 5 | . . . . 5 . . Launcher 6 | . 1 1 1 1 . 2 Special Weapon 3 | . . . . 1 . 2 Impact Weapon . | . . . . . . . Slashing Weapon . | . . . . . . . Piercing Weapon . | . . . . . . . Special Melee Weapon 1 | . . . . 1 . . Unidentified Prototypes 9 | . . 3 . 1 . 5 Corrupted Parts 2 | . . . 1 . . 1 System Corruption 6 | . . . 2 . . 4 Parts Lost 46 | . 2 3 10 12 7 12 Power 8 | . . 1 1 3 1 2 Propulsion 14 | . 1 2 3 5 1 2 Utility 6 | . . . 1 1 3 1 Weapon 18 | . 1 . 5 3 2 7 Highest Loss Streak 8 | . 2 2 8 6 7 3 To Critical Strikes . | . . . . . . . Average Slot Usage (%) 55 | . 94 82 68 76 34 22 Engine 5 | . 14 9 8 5 2 1 Core 1 | . . . . 2 . 3 Wheel 6 | . 25 29 16 . . . Hover 1 | . . . . . . 3 Flight 5 | . . . . 17 2 . Device 8 | . 14 11 8 14 14 . Storage 5 | . 14 11 9 7 6 . Protection 2 | . . . . 5 . 1 Energy Gun 3 | . 6 5 4 3 . 4 Ballistic Gun 5 | . 18 11 8 6 . . Ballistic Cannon 1 | . . . . 3 6 . Special Weapon 1 | . . . . 1 . 2 Naked Turns 27 | . . . . . 2 25 Heaviest Build 58 | 15 46 54 58 58 17 23 Greatest Support 89 | 32 32 52 42 89 17 29 Greatest Overweight (x) 12 | . 8 2 4 12 3 7 Average Overweight (x) . | . . 1 2 . 1 . Largest Inventory Capacity 20 | 8 20 20 20 20 8 5 Average Capacity 11 | 7 14 20 20 14 7 5 Most Carried 19 | 7 15 16 19 17 8 5 Average Carried 8 | 3 10 13 16 9 7 4 Final Capacity 20 | 8 20 20 20 8 5 5 Final Carried 16 | 6 12 16 16 7 5 5 Class Distribution -------------------- 64% | Mutant 23% | Scavenger-Mutant 6% | Tank 3% | Scavenger-Sprinter Dominant Class ---------------- Mutant | -10/Materials Scavenger-Mutant | -9/Materials Mutant | -8/Materials Scavenger-Mutant | -7/Factory Mutant | -7/Lower Caves Mutant | -6/Factory Resources | -11 -10 -9 -8 -7 -7 -6 ----------- Run | Yrd Mat Mat Mat Fac Low Fac Matter Collected 1969 | 229 274 156 224 501 102 483 Remotely . | . . . . . . . Salvage Created 2670 | 120 300 409 345 819 . 677 Parts 174 | 11 19 42 22 49 . 31 Haulers Intercepted 6 | . . 2 . 2 . 2 Recyclers Shooed 4 | . 1 1 1 . . 1 Parts Field Recycled . | . . . . . . . Retrieved Matter . | . . . . . . . Parts Self-Destructed . | . . . . . . . Prevented . | . . . . . . . Kills | -11 -10 -9 -8 -7 -7 -6 ------- Run | Yrd Mat Mat Mat Fac Low Fac Combat Hostiles Destroyed 35 | . 6 8 5 10 . 6 Guns 7 | . 2 . . 3 . 2 Cannons 11 | . . 3 1 7 . . AOE 16 | . 4 5 4 . . 3 Classes Destroyed 12 | 2 3 3 2 1 . 1 Worker 3 | . . 1 . . . 2 Builder 4 | . . . 1 . . 3 Tunneler 3 | 3 . . . . . . Hauler 6 | . . 2 . 2 . 2 Recycler 11 | 1 2 1 2 4 . 1 Watcher 8 | . 1 3 1 2 . 1 Swarmer 14 | . 4 4 . 6 . . Grunt 9 | . 2 3 2 . . 2 Sentry 5 | . . 1 1 2 . 1 Specialist 2 | . . . 2 . . . Hunter 2 | . . . . . . 2 Programmer 3 | . . . . 2 . 1 Best Kill Streak 8 | 2 5 6 4 5 . 8 Combat Bots Only 4 | . 4 4 3 3 . 1 Max Kills in Single Turn 3 | 1 2 2 2 2 . 3 Gunslinging . | . . . . . . . Exploded 2 | . 2 2 2 . . 1 Melee . | . . . . . . . Uniques/NPCs Destroyed . | . . . . . . . Combat | -11 -10 -9 -8 -7 -7 -6 -------- Run | Yrd Mat Mat Mat Fac Low Fac Hostile Shots Fired 662 | . 30 52 54 221 56 249 Missed 226 | . 10 14 10 85 27 80 Damage Taken 6089 | . 232 525 1016 1758 417 2141 Core 2008 | . 51 132 433 385 153 854 Absorbed by Shields . | . . . . . . . Redirected to Shielding 148 | . . . . 148 . . Regen/Repaired (Parts) 136 | . . . . . . 136 Core Remaining (%) 58 | 100 79 67 21 . 23 . Volleys Fired 175 | 9 29 25 24 52 4 32 Largest 2 | 2 2 2 2 2 1 2 Hottest 149 | 40 70 88 93 103 48 149 Shots Fired 284 | 12 56 47 37 82 4 46 Gun 223 | 12 54 30 26 56 3 42 Cannon 40 | . . 11 7 21 1 . Launcher 16 | . 2 6 4 . . 4 Special 5 | . . . . 5 . . Kinetic 156 | 12 31 25 22 62 4 . Thermal 52 | . . 11 7 . . 34 Explosive 12 | . 2 6 4 . . . Electromagnetic 59 | . 23 5 4 15 . 12 Robot Hit Streak 14 | 7 6 8 7 5 3 14 Robot Miss Streak 6 | 1 5 4 3 6 1 3 Penetration Max . | . . . . . . . Secondary Targets 3 | . 1 . . 2 . . Max Gunslinging Chain 1 | . 1 . . 1 . . Shots Hit Robots 175 | 9 28 24 24 50 3 37 Core Hits 114 | 5 14 25 16 26 1 27 Critical Kills . | . . . . . . . Critical Parts Destroyed . | . . . . . . . Critical Strikes 4 | . . . . 4 . . Blast 3 | . . . . 3 . . Corrupt 1 | . . . . 1 . . Melee Attacks 5 | . . . . 5 . . Impact . | . . . . . . . Slashing . | . . . . . . . Piercing . | . . . . . . . Sneak Attacks 5 | . . . . 5 . . Combat Hostiles . | . . . . . . . Follow-up Attacks . | . . . . . . . Damage Inflicted 4518 | 121 520 798 652 792 45 1590 Guns 2133 | 121 306 144 265 390 39 868 Cannons 666 | . . 142 122 402 . . Explosions 1682 | . 198 512 265 . . 707 Melee . | . . . . . . . Ramming 37 | . 16 . . . 6 15 Kinetic 1205 | 121 143 61 174 667 39 . Thermal 1119 | . . 179 122 . . 818 Explosive 1354 | . 198 475 265 . . 416 Electromagnetic 803 | . 163 83 91 125 . 341 Impact . | . . . . . . . Slashing . | . . . . . . . Piercing . | . . . . . . . Highest Corruption 10 | . . . 2 4 4 10 Average Corruption 4 | . . . 2 3 4 4 Corruption Purged . | . . . . . . . Corruption Blocked 8 | . . . . 8 . . Effects 37 | . . . 3 5 13 16 Message Errors 11 | . . . 1 3 4 3 Matter Fused 13 | . . . 1 2 5 5 Heat Flow Errors 4 | . . . . . 1 3 Energy Discharges 3 | . . . . . 1 2 Parts Rejected 1 | . . . . . . 1 Parts Fused 1 | . . . . . . 1 Data Loss (minor) 2 | . . . 1 . 1 . Data Loss (major) 1 | . . . . . 1 . Misfires 1 | . . . . . . 1 Overload Shots . | . . . . . . . Overflow Damage 43 | . 19 11 . . . 13 Projectiles 11 | . . 11 . . . . Explosions 31 | . 18 . . . . 13 Melee 1 | . 1 . . . . . Knockbacks 2 | . 1 . . 1 . . Impact 1 | . 1 . . . . . Kinetic 1 | . . . . 1 . . Secondary . | . . . . . . . Self-Inflicted Damage 163 | . 14 123 . . 3 23 Shots 5 | . 1 3 . . . 1 Rammed 7 | . 2 . . . 1 4 Targets Rammed 7 | . 2 . . . 1 4 Kicked . | . . . . . . . Crushed . | . . . . . . . Highest Temperature 226 | . 84 152 118 59 4 226 Average Temperature 53 | . 31 43 30 23 4 82 Received Heat Transfer 927 | . 84 129 126 78 . 510 Siege Activations . | . . . . . . . Robots Corrupted . | . . . . . . . Combat Hostiles . | . . . . . . . Parts Fried 1 | . . . . . . 1 Impact Corruptions 1 | . 1 . . . . . Robots Melted 1 | . . . . . . 1 Combat Hostiles 1 | . . . . . . 1 Parts Melted 1 | . . . . . . 1 Heat Transferred 1963 | . . 259 222 . . 1482 Parts Sabotaged . | . . . . . . . Parts Stolen . | . . . . . . . Parts Stripped . | . . . . . . . Power Chain Reactions 2 | . . 1 . . . 1 Alert | -11 -10 -9 -8 -7 -7 -6 ------- Run | Yrd Mat Mat Mat Fac Low Fac Peak Influence 600 | 20 120 407 376 324 . 600 Initial 163 | . 13 39 163 143 . 18 Average 138 | 9 49 214 248 132 . 139 Maximum Alert Level 2 | . . 2 1 1 . 2 Low Security (%) 71 | 100 100 31 47 79 . 68 Level 1 25 | . . 65 52 20 . 25 Level 2 2 | . . 2 . . . 6 Level 3 . | . . . . . . . Level 4 . | . . . . . . . Level 5 . | . . . . . . . High Security . | . . . . . . . Max Security . | . . . . . . . Squads Dispatched 14 | . . 2 4 3 . 5 Investigation 3 | . . 1 1 . . 1 Extermination 4 | . . . . 2 . 2 Reinforcement 7 | . . 1 3 1 . 2 Assault . | . . . . . . . Garrison . | . . . . . . . Intercept . | . . . . . . . Searches Triggered . | . . . . . . . Construction Impeded 1 | . . . 1 . . . Haulers Reinforced 2 | . . . . . . 2 Active Scanning Responses . | . . . . . . . Cargo Convoy Interrupts 1 | . . . . 1 . . Stealth | -11 -10 -9 -8 -7 -7 -6 --------- Run | Yrd Mat Mat Mat Fac Low Fac Distress Signals 3 | . 1 . 1 . . 1 Communications Jammed . | . . . . . . . Distress Signals . | . . . . . . . Times Spotted 89 | . 10 15 7 24 10 23 Peak Tracking Total 8 | . 6 4 3 6 4 8 Tactical Retreats 13 | . . 1 . 7 2 3 Traps | -11 -10 -9 -8 -7 -7 -6 ------- Run | Yrd Mat Mat Mat Fac Low Fac Traps Triggered 4 | . 2 1 1 . . . Indirectly . | . . . . . . . Trap Hack Attempts . | . . . . . . . Triggered . | . . . . . . . Disarmed . | . . . . . . . Reprogrammed . | . . . . . . . Reused . | . . . . . . . Traps Extracted . | . . . . . . . Installed . | . . . . . . . Triggered 1 | . . . . 1 . . Machines | -11 -10 -9 -8 -7 -7 -6 ---------- Run | Yrd Mat Mat Mat Fac Low Fac Machines Disabled 29 | . 1 1 1 1 . 25 Max in Single Turn 6 | . 1 1 1 1 . 6 Machines Repaired . | . . . . . . . Machines Dismantled . | . . . . . . . Machines Sabotaged . | . . . . . . . Overloaded Fab Kills . | . . . . . . . Hacking | -11 -10 -9 -8 -7 -7 -6 --------- Run | Yrd Mat Mat Mat Fac Low Fac Machines Accessed 8 | . . 1 1 3 . 3 Terminals 3 | . . 1 . 2 . . Fabricators 2 | . . . . 1 . 1 Repair Stations 1 | . . . . . . 1 Recycling Units . | . . . . . . . Scanalyzers 2 | . . . 1 . . 1 Garrison Access . | . . . . . . . Total Hacks 20 | . . 3 4 4 . 9 Successful 13 | . . 2 2 2 . 7 Failed 7 | . . 1 2 2 . 2 Catastrophic 1 | . . . . 1 . . Database Lockouts . | . . . . . . . Manual 4 | . . 3 . 1 . . Terminals 6 | . . 3 . 3 . . Fabricators 4 | . . . . 1 . 3 Repair Stations 4 | . . . . . . 4 Recycling Units . | . . . . . . . Scanalyzers 6 | . . . 4 . . 2 Garrison Access . | . . . . . . . Terminal Hacks 3 | . . 2 . 1 . . Open DSF 1 | . . . . 1 . . Locate Traps 1 | . . 1 . . . . Zone Layout 1 | . . 1 . . . . Fabricator Hacks 2 | . . . . 1 . 1 Network Status 1 | . . . . 1 . . Load Schematic 1 | . . . . . . 1 Repair Station Hacks 4 | . . . . . . 4 Scan Component 2 | . . . . . . 2 Repair 2 | . . . . . . 2 Recycling Unit Hacks . | . . . . . . . Scanalyzer 4 | . . . 2 . . 2 Insert Component 3 | . . . 2 . . 1 Analyze 1 | . . . . . . 1 Garrison Access Hacks . | . . . . . . . Unauthorized Hacks . | . . . . . . . Terminals . | . . . . . . . Fabricators . | . . . . . . . Repair Stations . | . . . . . . . Recycling Units . | . . . . . . . Scanalyzers . | . . . . . . . Garrison Access . | . . . . . . . Data Cores Recovered . | . . . . . . . Used . | . . . . . . . Hacking Detections 4 | . . . 1 2 . 1 Full Trace Events 2 | . . . 1 . . 1 Feedback Events 1 | . . . . . . 1 Corruption 1 | . . . . . . 1 Feedback Blocked . | . . . . . . . Robot Schematics Acquired . | . . . . . . . Robots Built . | . . . . . . . Authchips . | . . . . . . . Time . | . . . . . . . Total Robot Build Rating . | . . . . . . . Part Schematics Acquired 1 | . . . . . . 1 Parts Built . | . . . . . . . Authchips . | . . . . . . . Time . | . . . . . . . Total Part Build Rating . | . . . . . . . Parts Repaired 2 | . . . . . . 2 Time 82 | . . . . . . 82 Parts Recycled . | . . . . . . . Recycled Matter . | . . . . . . . Retrieved Matter . | . . . . . . . Retrieved Components . | . . . . . . . Parts Scanalyzed 2 | . . . 1 . . 1 Part Schematics Acquired 1 | . . . . . . 1 Parts Damaged 1 | . . . 1 . . . Bothacking | -11 -10 -9 -8 -7 -7 -6 ------------ Run | Yrd Mat Mat Mat Fac Low Fac Used RIF Installer . | . . . . . . . Robots Hacked 5 | . . . . 5 . . Non-combat 5 | . . . . 5 . . Combat . | . . . . . . . Robot Hacks Applied 9 | . . . . 9 . . parse_system 1 | . . . . 1 . . no_distress 4 | . . . . 4 . . find_chute 1 | . . . . 1 . . find_fabricator 1 | . . . . 1 . . find_dsf 1 | . . . . 1 . . find_recycling 1 | . . . . 1 . . Relay Couplers Released . | . . . . . . . Fabnet Peak Effective % . | . . . . . . . Robots Rewired . | . . . . . . . Allies Hacked . | . . . . . . . Hacks Repelled . | . . . . . . . Allies | -11 -10 -9 -8 -7 -7 -6 -------- Run | Yrd Mat Mat Mat Fac Low Fac Total Allies 1 | . . . . . 1 . Largest Group 1 | . . . . . 1 1 Highest-Rated Group 180 | . . . . . 180 180 Highest-Rated Ally 180 | . . . . . 180 180 Total Orders . | . . . . . . . Ally Attacks 48 | . . . . . 2 46 Total Damage 1978 | . . . . . . 1978 Kills 11 | . . . . . . 11 Allies Corrupted . | . . . . . . . Allies Melted . | . . . . . . . Intel | -11 -10 -9 -8 -7 -7 -6 ------- Run | Yrd Mat Mat Mat Fac Low Fac Robot Analysis Total . | . . . . . . . Derelict Logs Recovered 2 | . . . . . 2 . Drone Launches . | . . . . . . . Drone Recoveries . | . . . . . . . Exploration | -11 -10 -9 -8 -7 -7 -6 ------------- Run | Yrd Mat Mat Mat Fac Low Fac Turns Passed 4678 | 89 563 375 342 1256 528 1525 Spaces Moved 3521 | 54 423 265 216 1210 331 1022 Core 496 | 12 6 . . 50 153 275 Treads 184 | . . . . 33 . 151 Legs 46 | . . . . 46 . . Wheels 969 | 42 417 265 216 29 . . Hover 557 | . . . . . . 557 Flight 1269 | . . . . 1052 178 39 Fastest Speed 26 | 50 95 90 105 26 40 40 Average Speed 104 | 88 105 107 120 82 153 110 Slowest Speed 995 | 100 450 120 145 995 235 400 Overloaded Moves . | . . . . . . . Propulsion Burnouts . | . . . . . . . Robots Hopped 2 | . . . . . 2 . Cave-ins Triggered . | . . . . . . . Exploration Rate (%) 22 | 4 45 24 19 25 25 16 Regions Visited 6 Branch Regions 1 Pre-discovered Areas 1 | . . . . . 1 . Known Exits Taken 1 | . . . 1 . . . Unknown Exits Taken 5 | 1 1 1 . 1 1 . Scrap Searched 3 | . . . . . 3 . Spaces Dug . | . . . . . . . Terrain Destroyed 222 | . 15 81 39 4 . 83 Melee . | . . . . . . . Projectile 4 | . . . . 4 . . AOE 218 | . 15 81 39 . . 83 Terrain Rammed . | . . . . . . . Walls Destroyed . | . . . . . . . Machines Disabled . | . . . . . . . Actions | -11 -10 -9 -8 -7 -7 -6 --------- Run | Yrd Mat Mat Mat Fac Low Fac Total 4236 | 82 482 311 261 1388 343 1369 Wait 266 | . . . . 4 . 262 Move 3512 | 53 422 264 215 1209 327 1022 Hop 1 | . . . . . 1 . Pick Up 90 | 13 13 11 8 30 4 11 Fast Attach 21 | . . . . 5 1 15 Attach 61 | 7 5 4 6 28 3 8 Detach 9 | . . . . 5 . 4 Swap 47 | . 9 4 7 25 1 1 Drop 42 | . 2 3 1 25 1 10 Fire 175 | 9 29 25 24 52 4 32 Melee 5 | . . . . 5 . . Ram 7 | . 2 . . . 1 4 Kick . | . . . . . . . Crush . | . . . . . . . Escape Stasis . | . . . . . . . Rewire . | . . . . . . . Trap . | . . . . . . . Miscellaneous . | . . . . . . . Route ------- -11/Scrapyard -10/Materials (discovered 2 exits: *Mat / [*Min]) -9/Materials -8/Materials -7/Factory -7/Lower Caves -6/Factory History --------- Turn | Location | Event 17 | -11/Scrapyard | Discovered new exit (range 16) 90 | -11/Scrapyard | Entered Materials 327 | -10/Materials | Build established: Mutant 505 | -10/Materials | Discovered new exit (range 14) 520 | -10/Materials | Discovered new exit (range 15) 653 | -10/Materials | Entered another Materials area 653 | -9/Materials | Evolved 2 slots: Propulsion x2 939 | -9/Materials | Build established: Scavenger-Mutant 1022 | -9/Materials | Discovered new exit (range 4) 1028 | -9/Materials | Entered another Materials area 1028 | -8/Materials | Evolved 2 slots: Power x1, Utility x1 1338 | -8/Materials | Discovered new exit (range 8) 1356 | -8/Materials | Core integrity fell below 50% 1365 | -8/Materials | Identified exit to Factory 1370 | -8/Materials | Entered Factory 1370 | -7/Factory | Evolved 2 slots: Utility x1, Weapon x1 1388 | -7/Factory | Lost 8 parts (1p2n1u4w) 2358 | -7/Factory | Cargo convoy interrupted 2460 | -7/Factory | Lost 3 parts (1p1u1w) 2598 | -7/Factory | Discovered new exit (range 15) 2619 | -7/Factory | Core integrity fell below 50% 2626 | -7/Factory | Entered Lower Caves 2634 | -7/Lower Caves | Learned Factory emergency access door positions 2646 | -7/Lower Caves | Lost 6 parts (2p3n1w) 2780 | -7/Lower Caves | Learned location of Zion (-6) 2915 | -7/Lower Caves | Build established: Mutant 3146 | -7/Lower Caves | 7V-RTL showed up to help 3148 | -7/Lower Caves | 7V-RTL revealed a hidden path 3154 | -7/Lower Caves | Entered Factory 3154 | -6/Factory | Accompanied by 1 ally (7V-RTL) 3154 | -6/Factory | Evolved 2 slots: Power x1, Weapon x1 3173 | -6/Factory | Lost 7 parts (1p1n3u2w) 3205 | -6/Factory | Repaired Mic. Nuclear Core 3245 | -6/Factory | Repaired Imp. Weapon Shielding 4059 | -6/Factory | Core integrity fell below 50% 4608 | -6/Factory | Core integrity fell below 20% 4634 | -6/Factory | Lost 3 parts (1u2w) 4677 | -6/Factory | System corruption reached 10% 4679 | -6/Factory | Destroyed by Y-54 Guardian with Flak Gun Last Messages --------------- K-01 Serf collects debris. U-05 Engineer lays Concrete. K-01 Serf collects debris. U-05 Engineer lays Concrete. XEIIGXWYG7 9XLMCS#79 4&=6R>23 WSA K-01 Serf collects debris. U-05 Engineer lays Concrete. U-05 Engineer builds a Wall. K-01 Serf collects debris. U-05 Engineer builds a Wall. K-01 Serf collects debris. U-05 Engineer lays Concrete. Imp. Hover Unit fried. W-25 Informer destroyed. U-05 Engineer lays Concrete. U-05 Engineer builds a Wall. The unstable cave ceiling collapses. K-01 Serf collects debris. Adv. EMP Blaster destroyed. Faulty Ion Burst Cannon destroyed. Map ----- +----------------------------------------------------+ | ?????????????????????????????????????????????????? | | ?????????????????????????????????????????????????? | | ?????????????????????????????????????????????????? | | ?????????????????????????????????????????????????? | | ?????????????????????????????????????????????????? | | ?????????????????????????????????????????????????? | | ???????????????????????????????????????? ????? | | ???????????????????????????????????????# ??? | | ???????????????????????????????????????# | | ???????????????????????????????????????# | | ???????????????????????????????????????# | | ???????????????????????????????????????# | | ???????????????????????????????????????# | | ???????????????????????????????????????# | | ???????????????????????????????????????# | | ??????????????########################## | | ?????????????? | | ?????????????? | | ????????????? k | | ????????????? % | | ?????????????? | | ?????????????????????# =%! ]] | | ?????????????????????# ! ! %]! | | ?????????????????????# =%| ! | | ???????????????????###! ! ! | | ?????????????????? +!%]* @ % | | | ?????????????? ###! ![= !% | | ????????????? ??# [ u | | ??????????????*????# # ## ## | | ????????????????? # | | ??????????????? # ^ | | ??????????????! # ^ | | ????????????? "#########+####### | | ????????????? Y ; #???????????????? | | ?????????????## ### #???????????????? | | ??????????????#???# ##???????????????? | | ??????????????????; ????????????????? | | ????????????????? #???????????????? | | ??????????????????# #????????????????? | | ????????????????????? ??????????????????? | | ??????????????????????? ???????????????????? | | ?????????????????????????????????????????????????? | | ?????????????????????????????????????????????????? | | ?????????????????????????????????????????????????? | | ?????????????????????????????????????????????????? | | ?????????????????????????????????????????????????? | | ?????????????????????????????????????????????????? | | ?????????????????????????????????????????????????? | | ?????????????????????????????????????????????????? | | ?????????????????????????????????????????????????? | +----------------------------------------------------+ Best States ------------- Heat Dissipation 37 Energy Generation 31 Energy Capacity 360 Matter Stores 300 Matter Capacity 300 Sight Range 16 Robot Scan Range 14 Terrain Scan Range 16 Terrain Scan Density 10 Additional Mass Support 12 Base Temperature (-) 100 Armor Coverage 150 Propulsion Shielding 33 Weapon Shielding 66 Evasion (%) 64 Recoil Reduction 2 Authchip Count 1 Item Schematics ----------------- Gravmag Array | -6/Factory | Scanalyzed Robot Schematics ------------------ None Fabricated ------------ Nothing Alien Tech Used ----------------- None Achievements -------------- None Challenges ------------ None Game ------ Seed GunMomentumThrower Manual? 0 Play Time 01:01:08 Cumulative 9.3 hours Start 2024.04.06 @ 16:43:38 End 2024.04.06 @ 18:20:22 Sessions 3 Manual Loads 0 Difficulty Rogue Special Mode None Game No. 21 Rogue 21 Adventurer 0 Explorer 0 Win Type - Total 0 Types 0/0/0/0/0/0/0/0/0 Lore% 15 Gallery% 19 Achievement% 16 Wizard Run 0 Options --------- Layout 1 ASCII 0 Keyboard 0 Movement Arrows Keybinds 0 Fullscreen 1 Font 24/Smallcaps Map View 50x35 Zoom Use 0% Tactical HUD 0 Map Filters NONE Filters NONE Steam 1 RUN: d2fc83af-77d1-4ff6-bae2-93b2b29674c8